[Event "Chhattisgarh Masters GM 2022"]
[Site "Chhattisgarh"]
[Date "2022.09.19"]
[Round "1.10"]
[White "Bommini Mounika Akshaya"]
[Black "Mitrabha, Guha"]
[Result "0-1"]
[ECO "D07"]
[WhiteElo "2152"]
[BlackElo "2471"]
[Annotator "TA"]
[PlyCount "82"]
[EventDate "2022.09.19"]
[EventCountry "IND"]
[SourceTitle "playchess.com"]
[Source "ChessBase"]
[SourceQuality "1"]
[TimeControl "5400+30"]

{[%evp 16,82,0,0,1,0,0,0,2,-9,-4,-15,-16,-14,-10,-10,-18,-20,0,-28,-6,-65,-55,-45,-45,-50,-50,-54,-52,-48,0,0,-18,-49,-16,-82,-82,-159,-154,-145,-147,-324,-301,-397,-388,-487,-457,-610,-600,-667,-666,-812,-805,-750,-737,-720,-545,-681,-670,-648,-516,-435,-475,-420,-325,-310,-284,-284,-284]} 1. d4 {[%emt 0:00:05]} d5 {[%emt 0:00:05]} 2. c4 {[%emt 0:00:15]} Nc6 {[%emt 0:00:05]} 3. cxd5 {[%emt 0:02:17]} Qxd5 {[%emt 0:00:03]} 4. Nf3 {[%emt 0:01:32]} e5 {[%emt 0:00:21]} 5. Nc3 {[%emt 0:08:23]} Bb4 {[%emt 0:00:03]} 6. Bd2 {[%emt 0:12:06]} Bxc3 {[%emt 0:00:03]} 7. Bxc3 {[%emt 0:00:09]} e4 {[%emt 0:00:05]} 8. Nd2 {[%emt 0:01:00]} e3 {[%emt 0:00:02]} 9. fxe3 {[%emt 0:01:08] CPLX 3.2} Nf6 {[%emt 0:00:02] Against e4. EASY. D07: Queen's Gambit: Chigorin Defence.} 10. Qb3 {[%emt 0:09:14] CPLX 2.4 1 (e3-e4) (=1)} Be6 {[%emt 0:00:02][%cal Bc8e6,Be6d5,Bd5e4][%mdl 32] BESTDEEP} 11. Qxd5 {[%emt 0:06:15] MISS-Qb3xb7 0 (Qb3xb7) (=0)} Bxd5 {[%emt 0:00:02] RECAPT. The position is equal.} 12. e4 {[%emt 0:02:25] CPLX 2.2 11 (Rh1-g1) (=3)} Nxe4 {[%emt 0:00:25] CPLX 2.5} 13. Nxe4 {[%emt 0:01:29] RECAPT} Bxe4 {[%emt 0:00:10] RECAPT} 14. e3 $1 {[%emt 0:03:02] DEEPSTRONG} O-O-O {[%emt 0:01:29] [#] CPLX 2.0} 15. Be2 $146 {[%emt 0:06:49] CPLX 2.0 0 (Bf1-b5) (=2)} ({Predecessor:} 15. Bc4 f6 16. Kf2 Rhe8 17. b4 Ne7 18. Rhe1 Nf5 19. Bf1 h5 20. b5 Rd7 21. Rac1 {½-½ (63) Bairachny,R (2315)-Panchenko,A (2465) Yalta 1996}) 15... Rhe8 {[%emt 0:01:46] BESTDEEP} 16. O-O {[%emt 0:01:16] CPLX 2.1} f6 {[%emt 0:00:42] CPLX 2.2 20 (f7-f5) (=3)} 17. Bb5 {CPLX 2.2 28 (b2-b4) (=4)} Re6 {[%emt 0:00:37] CPLX 2.3 22 (a7-a6) (=5)} 18. Bxc6 {[%emt 0:04:49] RELBLUND 59 (Bb5-e2) (=10)} (18. Be2 $11) 18... Bxc6 $15 {[%emt 0:00:06] RECAPT} 19. Bd2 {[%emt 0:00:19] CPLX 2.0} Bd5 {[%emt 0:00:25] CPLX 2.0 0 (a7-a6) (=4)} 20. a3 {[%emt 0:05:33] CPLX 2.0 5 (a2-a4) (=9)} Kd7 {[%emt 0:01:05] BESTDEEP} 21. Rac1 {[%emt 0:00:22] CPLX 2.0 4 (a3-a4) (=8)} g5 {[%emt 0:00:30] BESTDEEP} 22. Rf2 {[%emt 0:07:49] CPLX 2.0 0 (Bd2-a5) (=8)} h5 {[%emt 0:01:16] CPLX 2.0 48 (c7-c6) (=6)} 23. Rcf1 $1 {[%emt 0:02:08] DEEPSTRONG} Ke7 {[%emt 0:00:19] CPLX 2.0} 24. h3 {[%emt 0:13:22] CPLX 2.0 31 (Rf2-f5) (=9)} h4 {[%emt 0:00:54] CPLX 2.0 33 (c7-c6) (=8)} 25. Bc3 {[%emt 0:02:11] RELBLUND 66 (Rf2-f5) (=12)} (25. Rf5 $1 $11) 25... Rg8 $17 {[%emt 0:05:43] Black is more active. BESTDEEP} ({Much weaker is} 25... Rxe3 $6 26. Rxf6 Rg8 27. R6f5 $11) 26. e4 {[%emt 0:03:42] CPLX 2.0 77 (Kg1-h2) (=16)} (26. Kh2 $142) 26... Rxe4 {[%emt 0:00:11] DEEPSTRONG} ({Not} 26... Bxe4 27. d5 Bxd5 28. Rxf6 $17) 27. Rxf6 {[%emt 0:01:23] [#] CPLX 2.0} g4 $1 {[%emt 0:00:10] DEEPSTRONG} 28. Bb4+ $2 {[%emt 0:04:16] White does not recover from this. CPLX 2.5 177 (Rf6-f8) (=23)} (28. Rf8 $17) 28... Kd7 $19 {[%emt 0:00:08] Strongly threatening ...gxh3. CPLX 2.6=>BLUNDERREACT} 29. Rf8 {[%emt 0:00:49] [#] CPLX 2.2 96 (Rf6-f5) (=26)} Rg7 {[%emt 0:00:20] Hoping for ...gxh3. BESTDEEP} 30. R1f5 {[%emt 0:00:34] CPLX 2.4 99 (Rf1-e1) (=30)} c6 {[%emt 0:00:41] White must now prevent ...gxh3. CPLX 2.7} 31. Rb8 {[%emt 0:00:37][%cal Of5d5] Rxd5+! is the strong threat. CPLX 2.8 153 (Kg1-f2) (=35)} Kc7 {[%emt 0:00:57] EASY} 32. Rff8 {[%emt 0:00:19] CPLX 2.9 67 (Rb8-a8) (=36)} Kb6 {[%emt 0:00:40] BESTDEEP} 33. hxg4 {[%emt 0:00:47] CPLX 2.6 146 (Kg1-f2) (=41)} Rexg4 {[%emt 0:00:08] RECAPT} 34. Bc5+ {[%emt 0:00:21] CPLX 2.7 0 (Kg1-f1) (=39)} Kb5 {[%emt 0:00:19] CPLX 2.6 13 (Kb6-a6) (=5)} 35. Rf2 {[%emt 0:00:41] CPLX 2.9 0 (Kg1-f1) (=38)} Rxg2+ {[%emt 0:01:30] CPLX 2.8 175 (h4-h3) (=12)} 36. Kf1 {CPLX 3.2 136 (Rf2xg2) (=41)} h3 {[%emt 0:03:23] BESTDEEP} 37. Rh8 {[%emt 0:00:37] BESTDEEP} Rxf2+ {[%emt 0:00:15] CPLX 3.4 132 (Rg7-g3) (=15)} 38. Kxf2 {[%emt 0:00:01] RECAPT} Rg2+ {[%emt 0:00:02] EASY} 39. Ke3 {[%emt 0:01:02] CPLX 2.4} h2 {[%emt 0:03:55] CPLX 2.7 95 (Rg2xb2) (=17)} 40. Bd6 {[%emt 0:00:25] EASY} h1=Q {[%emt 0:00:03] CPLX 3.1 26 (h2-h1R) (=18)} (40... Rxb2 41. Rxh2 Rb3+ 42. Kf4 $17) 41. Rxh1 {[%emt 0:00:12] EASY} Rg6 {[%emt 0:00:02] Weighted Error Value: White=0.39/Black=0.21 (precise)} ({Worse is} 41... Rxb2 42. Rc1 $17) 0-1

[Event "Chhattisgarh Masters GM 2022"]
[Site "Chhattisgarh"]
[Date "2022.09.19"]
[Round "1.10"]
[White "Jaiswal, Rupesh"]
[Black "Nitish Belurkar"]
[Result "0-1"]
[ECO "C07"]
[WhiteElo "2107"]
[BlackElo "2419"]
[Annotator "TA"]
[PlyCount "74"]
[EventDate "2022.09.19"]
[EventCountry "IND"]
[SourceTitle "playchess.com"]
[Source "ChessBase"]
[SourceQuality "1"]
[TimeControl "5400+30"]

{[%evp 13,74,3,11,12,-4,-11,-12,-9,0,0,0,0,0,0,0,-10,-2,-3,0,3,22,12,12,16,23,13,21,22,14,17,16,-25,-17,-16,-11,-24,-34,-21,-34,-29,-27,-87,-76,-70,-72,-91,-71,-120,-122,-121,-127,-114,-123,-108,-81,-81,-77,-83,-76,-84,-97,-435,-427]} 1. e4 {[%emt 0:00:03]} e6 {[%emt 0:00:10]} 2. d4 {[%emt 0:00:53]} d5 {[%emt 0:00:05]} 3. Nd2 {[%emt 0:01:05]} c5 {[%emt 0:00:07]} 4. dxc5 {[%emt 0:02:28]} Nf6 {[%emt 0:02:16]} 5. exd5 {[%emt 0:02:27]} Qxd5 {[%emt 0:00:10]} 6. Ngf3 {[%emt 0:00:13]} Bxc5 {[%emt 0:01:38]} 7. Bc4 {[%emt 0:00:48]} Qh5 {[%emt 0:02:26] CPLX 3.1} 8. Nb3 {[%emt 0:03:15] C07: French Tarrasch: 3...c5, 4 Ngf3 and 4 exd5 Qxd5.} Bb6 {[%emt 0:03:27][%cal Bc5b6,Bb6c7,Bc7f4][%mdl 32] BESTDEEP} 9. O-O {[%emt 0:00:56] CPLX 2.9 7 (Qd1-e2) (=4)} O-O {[%emt 0:00:26] BESTDEEP} 10. Qe2 {[%emt 0:02:51] Against e5. CPLX 3.0 0 (Nf3-d2) (=2). The position is equal.} Nc6 {[%emt 0:04:27] CPLX 3.0 9 (Bb6-c7) (=2)} 11. Bf4 {[%emt 0:07:28] Prevents e5. CPLX 3.1} Re8 {[%emt 0:06:20] [#] White must now prevent ...e5. CPLX 3.3 0 (Qh5-f5) (=2)} 12. Ne5 {[%emt 0:25:59] CPLX 3.2} Qxe2 {[%emt 0:01:18] CPLX 3.8 0 (a7-a5) (=2)} 13. Bxe2 {[%emt 0:00:02] [#] RECAPT} Bc7 $146 {[%emt 0:01:01] BESTDEEP} ({Predecessor:} 13... Nxe5 14. Bxe5 Rd8 15. Bf3 Nd7 16. Bd6 Nb8 17. Rfd1 Nc6 18. c4 a6 19. Bxc6 bxc6 {1-0 (27) Biryukov,D (2365)-Bolychevsky,A (1825) Saratov 2011}) 14. Nxc6 {[%emt 0:01:35] BESTDEEP} Bxf4 {[%emt 0:00:07] EASY} 15. Ncd4 {[%emt 0:00:29] CPLX 2.5 1 (Nc6-a5) (=1)} e5 {[%emt 0:02:35] CPLX 2.2 3 (a7-a6) (=1)} 16. Nb5 {[%emt 0:01:41] Threatens to win with g3. CPLX 2.4} Rd8 {[%emt 0:02:48] CPLX 2.2 19 (e5-e4) (=3)} 17. g3 {[%emt 0:04:20] CPLX 2.3 10 (Ra1-d1) (=2)} Bh6 {[%emt 0:00:07] CPLX 2.3} 18. Rad1 {[%emt 0:03:17] CPLX 2.0} Bf5 {[%emt 0:01:23] CPLX 2.7} 19. Rxd8+ {[%emt 0:00:42] CPLX 2.4} Rxd8 {[%emt 0:00:14] RECAPT} 20. Rd1 {[%emt 0:00:16] CPLX 2.1} Rb8 {[%emt 0:07:13] BESTDEEP} 21. c3 {[%emt 0:08:23] CPLX 2.1} g6 {[%emt 0:06:03] BESTDEEP} 22. Bd3 {[%emt 0:03:53] CPLX 2.1 41 (Nb5-d6) (=4)} Bg4 {[%emt 0:03:53] BESTDEEP} 23. Re1 {[%emt 0:01:05] CPLX 2.2} Rd8 {[%emt 0:00:36] EASY} 24. Bc2 {[%emt 0:05:21] CPLX 2.3 13 (Bd3-c4) (=4)} a6 {[%emt 0:01:11] EASY} 25. Na3 {[%emt 0:00:26] CPLX 2.2} e4 {[%emt 0:00:52][%cal Be5e4,Be4e3][%mdl 32] BESTDEEP} 26. Nc4 {[%emt 0:01:15] BESTDEEP} Be6 $36 {[%emt 0:07:38][%mdl 2048] Black is more active. CPLX 2.1} 27. Na3 {[%emt 0:07:31] CPLX 2.4 60 (Nc4-a5) (=7)} (27. Nca5 $11) 27... e3 $17 {[%emt 0:09:38] Strongly threatening ...exf2+. CPLX 2.1} 28. f4 {[%emt 0:03:03] BESTDEEP} Bf8 {[%emt 0:03:31] BESTDEEP} 29. Nb1 {[%emt 0:02:12] CPLX 2.5 19 (Bc2-d1) (=7)} Ng4 {[%emt 0:02:03] Black is much more active. CPLX 2.4 20 (b7-b5) (=2)} 30. Nd4 {[%emt 0:02:50] CPLX 2.5 49 (a2-a4) (=9)} (30. a4 $142) 30... Bxa2 {[%emt 0:01:04] EASY} 31. h3 {[%emt 0:00:37] CPLX 2.6} Nf6 {[%emt 0:01:10] BESTDEEP} 32. Rxe3 {[%emt 0:00:37] EASY} Bc5 {[%emt 0:00:18] ...Rxd4 is the strong threat. EASY} 33. Rd3 {[%emt 0:00:46] BESTDEEP} Nd5 {[%emt 0:04:59] CPLX 2.1 27 (Ba2-c4) (=3)} 34. Nd2 {[%emt 0:01:06] [#] EASY} Nb4 $1 {[%emt 0:05:00] CPLX 2.1} 35. cxb4 {[%emt 0:00:14] EASY} Bxd4+ {[%emt 0:00:02] EASY} 36. Kf1 {[%emt 0:04:27] CPLX 2.0} Be6 {[%emt 0:02:31] A strong pair of Bishops. CPLX 2.1} 37. Kg2 {[%emt 0:01:31][%mdl 8192] RELBLUND 338 (g3-g4) (=18)} (37. g4 $17) 37... Bf5 {[%emt 0:00:12] Weighted Error Value: White=0.26 (precise) /Black=0.03 (flawless)} 0-1

[Event "Chhattisgarh Masters GM 2022"]
[Site "Chhattisgarh"]
[Date "2022.09.19"]
[Round "1.10"]
[White "Potluri Saye Srreezza"]
[Black "Divya Deshmukh"]
[Result "0-1"]
[ECO "E34"]
[WhiteElo "2044"]
[BlackElo "2330"]
[Annotator "TA"]
[PlyCount "146"]
[EventDate "2022.09.19"]
[EventCountry "IND"]
[SourceTitle "playchess.com"]
[Source "ChessBase"]
[SourceQuality "1"]
[TimeControl "5400+30"]

{[%evp 11,146,2,33,23,27,25,38,17,27,24,40,27,38,44,22,12,38,39,49,12,0,-2,-8,-12,0,-14,-20,-15,0,0,0,-108,-107,-100,-106,-122,-70,-97,-94,-147,-31,-136,-96,-127,-127,-132,-122,-118,-77,-118,-81,-93,-88,-116,-118,-145,-109,-114,-114,-109,-118,-117,-48,-46,-54,-39,-55,-99,-50,-87,-73,-74,-63,-65,-65,-97,-29,-26,-29,-89,-66,-63,0,-86,-68,-68,-81,-97,-66,-96,-47,-103,-82,-87,-43,-75,-74,-75,-55,-169,-169,-175,-168,-169,-150,-334,-337,-379,-372,-709,-356,-518,-533,-514,-489,-753,-745,-1300,-643,-645,-623,-671,-372,-600,-559,-710,-699,-604,-489,-885,-858,-792,-772,-12838,-11769,-12827,-5903]} 1. d4 {[%emt 0:00:15]} Nf6 {[%emt 0:00:11]} 2. c4 {[%emt 0:00:13]} e6 {[%emt 0:00:04]} 3. Nc3 {[%emt 0:00:04]} Bb4 {[%emt 0:00:06]} 4. Qc2 {[%emt 0:00:29]} O-O {[%emt 0:02:33]} 5. Nf3 {[%emt 0:01:49]} d5 {[%emt 0:06:10]} 6. cxd5 {[%emt 0:04:25]} Qxd5 {[%emt 0:01:50] RECAPT 31 (e6xd5) (=31)} 7. Bd2 {[%emt 0:04:26] CPLX 3.1 10 (e2-e3) (=10). E34: Nimzo-Indian: Classical: 4...d5.} Bxc3 {[%emt 0:08:17] CPLX 3.0} 8. Bxc3 {[%emt 0:02:01] RECAPT} Rd8 {[%emt 0:01:08] [#] CPLX 2.4 13 (b7-b6) (=15)} 9. g3 $146 {[%emt 0:11:06] CPLX 2.4 21 (e2-e3) (=10). White is slightly better.} (9. e3 $5 {[%cal Rc3d2]}) ({Predecessor:} 9. e3 Bd7 10. h4 Bb5 11. h5 h6 12. Rh4 Bxf1 13. Kxf1 Nxh5 14. e4 Qb5+ 15. Kg1 {1-0 (41) Salonen,J (2150)-Varonen,M (2104) ICCF email 2015}) 9... c5 {[%emt 0:10:02] CPLX 2.5 10 (Qd5-f5) (=14)} 10. dxc5 {[%emt 0:06:13] BESTDEEP} Qxc5 {[%emt 0:01:59] RECAPT} 11. b4 {[%emt 0:04:51] CPLX 3.3 13 (Bf1-g2) (=9)} (11. Bg2 {feels hotter.} Nc6 12. O-O h6 13. Rfd1) 11... Qc7 {[%emt 0:07:30] CPLX 3.3 11 (Qc5-e7) (=11)} 12. Qb2 {[%emt 0:02:12] BESTDEEP} Qe7 {[%emt 0:12:18] BESTDEEP} 13. a3 {[%emt 0:05:35] CPLX 2.1 10 (Bf1-g2) (=8)} Nbd7 {[%emt 0:01:44] CPLX 2.1 26 (Bc8-d7) (=11)} 14. Bg2 {[%emt 0:03:11] CPLX 2.0} Nb6 {[%emt 0:00:56] CPLX 2.0} 15. Qb3 {[%emt 0:08:47] CPLX 2.1 37 (0-0) (=10)} Bd7 {[%emt 0:04:31] CPLX 2.2 0 (Nf6-e4) (=9)} 16. b5 {[%emt 0:10:35] CPLX 2.1 2 (0-0) (=9)} Ne4 {[%emt 0:02:22] CPLX 2.1} 17. Bd4 {[%emt 0:03:37] EASY} Be8 {[%emt 0:07:47] CPLX 2.7 12 (Ra8-c8) (=9)} 18. e3 {[%emt 0:11:01] CPLX 3.2 14 (0-0) (=9)} Nc5 {[%emt 0:01:28] Pair of Knights! CPLX 3.0} 19. Qb1 {[%emt 0:07:14] CPLX 3.0 0 (Bd4xc5) (=8)} Nca4 {[%emt 0:11:00] CPLX 3.0 15 (Ra8-c8) (=8)} 20. O-O {[%emt 0:10:05] CPLX 3.3} Rd5 {[%emt 0:00:16] CPLX 3.3 0 (f7-f6) (=8)} 21. Bxb6 {[%emt 0:01:50] MISSDEEP-Qb1-b4 108 (Qb1-b4) (=14)} (21. Qb4 $11 {keeps the balance.} Qxb4 22. axb4) 21... Rxb5 $17 {[%emt 0:00:32] EASY} 22. Qe4 {[%emt 0:00:52] CPLX 3.5} Rxb6 {[%emt 0:00:18] CPLX 3.5} 23. Nd4 {[%emt 0:00:30] CPLX 2.5 16 (Ra1-c1) (=14)} Rb2 {[%emt 0:06:21] CPLX 2.5 52 (Na4-c5) (=9)} (23... Nc5 $17 24. Qc2 Ba4) 24. Rfc1 {[%emt 0:00:30] CPLX 2.7 27 (Ra1-c1) (=14)} Nc5 {[%emt 0:01:47] CPLX 3.0} 25. Qf3 {[%emt 0:00:34] CPLX 3.2 53 (Qe4-h4) (=16)} (25. Qh4 $142 Qxh4 26. gxh4) 25... Nd3 {[%emt 0:00:14] RELBLUND 116 (Ra8-d8) (=14)} (25... Rd8 $17 {And now ...g6 would win.} 26. Rcb1 Rd2) 26. Rf1 {[%emt 0:00:18] RELBLUND 105 (Rc1-c3) (=21)} (26. Rc3 $1 $15 Nc5 27. Qd1) 26... g6 {[%emt 0:00:46] CPLX 2.8 40 (Ra8-c8) (=16)} 27. Qd1 {[%emt 0:00:36] CPLX 2.9 31 (e3-e4) (=21)} Nc5 {[%emt 0:00:16] Black is more active. CPLX 3.0} 28. Rb1 {[%emt 0:00:31] CPLX 2.5 5 (Qd1-c1) (=21)} Rxb1 {[%emt 0:02:00] CPLX 2.8 10 (Rb2-a2) (=15)} 29. Qxb1 {[%emt 0:00:01] RECAPT} e5 {[%emt 0:00:01] CPLX 2.2 41 (Ra8-c8) (=16)} 30. Ne2 {[%emt 0:00:32] CPLX 2.3 41 (Nd4-b3) (=21)} Qe6 {[%emt 0:10:15] CPLX 2.1 37 (Kg8-g7) (=17)} 31. Rc1 {[%emt 0:00:54] CPLX 2.2} Qb6 {[%emt 0:00:16] CPLX 2.5} 32. Qc2 {[%emt 0:00:34] CPLX 2.4 28 (Qb1-b4) (=20)} Rc8 {[%emt 0:00:13] CPLX 2.2} 33. Rb1 {[%emt 0:00:33] CPLX 2.5 27 (Qc2-c3) (=20)} Qd8 {[%emt 0:00:57] CPLX 2.7 36 (Qb6-c7) (=16)} 34. Qb2 {[%emt 0:00:13] CPLX 2.5} Qd6 {[%emt 0:00:36] BESTDEEP} 35. Nc3 {[%emt 0:00:21] BESTDEEP} ({But not} 35. Bxb7 $2 Rb8 36. Qc2 Rxb7 $19) 35... Bc6 {[%emt 0:00:22] Inhibits Ne4. CPLX 2.2} 36. Rd1 {[%emt 0:00:17] CPLX 2.5} Nd3 {[%emt 0:00:46] CPLX 2.9 69 (Qd6-e6) (=17)} (36... Qe6 $17 37. Qb4 b6 38. Bxc6 Rxc6) 37. Bxc6 $15 {[%emt 0:00:55] CPLX 3.5} Nxb2 {[%emt 0:00:33] BESTDEEP} ({Resist} 37... Rxc6 38. Qd2 $16) 38. Rxd6 {[%emt 0:00:05][%cal Oc3d5] EASY} Rxc6 {[%emt 0:00:13][%mdl 4096] Endgame KRN-KRN. EASY} 39. Rd8+ {[%emt 0:00:20] BESTDEEP} Kg7 {[%emt 0:00:02] LEGAL} 40. Nb5 {[%emt 0:00:15] CPLX 2.0 37 (Nc3-e4) (=17)} a6 {[%emt 0:00:20] CPLX 2.0 14 (Rc6-c1) (=15)} 41. Nd6 {[%emt 0:00:06] EASY} Nc4 {[%emt 0:00:00] CPLX 2.0 11 (b7-b5) (=15)} 42. Nxb7 {[%emt 0:00:00] CPLX 2.1} Nxa3 {[%emt 0:00:00] CPLX 2.0} 43. Rd7 {[%emt 0:00:00] CPLX 2.0 32 (Nb7-a5) (=17)} Nc4 {[%emt 0:00:00] RELBLUND 68 (Na3-b5) (=16)} (43... Nb5 $17 44. f4 Rc1+ 45. Kg2 Kf6) 44. Nd8 $11 {[%emt 0:00:00][%csl LRc6,LRf7] DEEPSTRONG} Rf6 {[%emt 0:00:00] CPLX 2.0} 45. Ra7 {[%emt 0:00:00] CPLX 2.0 60 (g3-g4) (=17)} (45. g4 $11 {remains equal.}) 45... Na3 {[%emt 0:00:00] CPLX 2.0 23 (g6-g5) (=16)} 46. Re7 {[%emt 0:00:00] CPLX 2.0 0 (Nd8-b7) (=17)} Nc4 {[%emt 0:00:00] CPLX 2.0 63 (Kg7-f8) (=17)} (46... Kf8 $5 {[%cal Rf8e7]} 47. Rc7 Nb5 $17) 47. Ra7 $1 {[%emt 0:00:00] DEEPSTRONG} Nb2 {[%emt 0:00:00] CPLX 2.0 18 (g6-g5) (=17)} 48. f4 {[%emt 0:00:19] CPLX 2.0 0 (h2-h4) (=16)} Nc4 {[%emt 0:00:00] CPLX 2.0} 49. Kf2 {[%emt 0:00:35] CPLX 2.0 16 (g3-g4) (=16)} g5 {[%emt 0:00:00] CPLX 2.1 31 (Nc4-d6) (=17)} 50. Rc7 {[%emt 0:03:06] CPLX 2.3 30 (Kf2-f3) (=16)} Nb6 {[%emt 0:00:00] CPLX 2.5 49 (Nc4-d6) (=18)} ({Better is} 50... Nd6 $17 {[%cal Rg5f4]} 51. Kf3 gxf4 52. gxf4 Nb5) 51. Ra7 {[%emt 0:01:16] CPLX 2.2 56 (Nd8-b7) (=17)} (51. Nb7 $15) 51... exf4 {[%emt 0:00:00] CPLX 2.3 21 (Nb6-c8) (=18)} 52. exf4 {[%emt 0:00:23] RECAPT} Na4 {[%emt 0:01:33] CPLX 2.0 44 (Nb6-c8) (=18)} 53. Ke3 {[%emt 0:01:49] CPLX 2.0 32 (Kf2-f3) (=17)} gxf4+ {[%emt 0:00:04] CPLX 2.0} 54. gxf4 {[%emt 0:00:04] RECAPT} Nc3 {[%emt 0:01:30] CPLX 2.0 20 (Na4-b6) (=18)} (54... Nb6 $5 {[%cal Rb6d5]} 55. Ke4 Nc8 $17) 55. f5 {[%emt 0:00:23] [#] CPLX 2.0 114 (Ra7-d7) (=19)} (55. Rd7 $15) 55... Nb5 $1 $19 {[%emt 0:00:25] CPLX 2.0=>BLUNDERREACT} ({Stronger than} 55... Rxf5 56. Rxa6 Rh5 57. Ra7 $17) 56. Rd7 {[%emt 0:01:04] CPLX 2.1 6 (Ra7-a8) (=19)} Rxf5 {[%emt 0:00:14] CPLX 2.0 7 (Rf6-d6) (=17)} 57. Nc6 {[%emt 0:00:26] CPLX 2.0} Kf6 {[%emt 0:01:10] CPLX 2.0 19 (Rf5-f6) (=17)} 58. Nb4 $2 {[%emt 0:00:34] [#] This costs White the game. CPLX 2.0 184 (Rd7-b7) (=21)} (58. Rb7 $17 {was worth a try.}) 58... a5 $1 {[%emt 0:00:17][%cal Ba6a5,Ba5a4,Ba4a3][%mdl 32] CPLX 2.0=>BLUNDERREACT} 59. Nc6 {[%emt 0:00:12] CPLX 2.1 42 (Nb4-c2) (=22)} a4 {[%emt 0:00:19] CPLX 2.0} 60. Nd8 $2 {[%emt 0:00:51] CPLX 2.1 337 (h2-h4) (=28)} (60. h4) 60... Kg6 {[%emt 0:05:58] CPLX 2.3 353 (a4-a3) (=23)} 61. Rb7 {[%emt 0:00:08]} (61. Nc6 $142 Rh5 62. Rd2) 61... a3 {[%emt 0:00:00]} 62. Rb6+ {[%emt 0:00:10]} f6 {[%emt 0:00:00]} 63. Ra6 {[%emt 0:00:07]} (63. Nc6 $142 a2 64. Ra6) 63... Rh5 {[%emt 0:00:00]} 64. Ra5 {[%emt 0:00:25]} Rh3+ {[%emt 0:00:00]} (64... Nc3 $142 65. Ra8 a2) 65. Kf4 {[%emt 0:00:16]} Rb3 {[%emt 0:00:00]} 66. Ne6 {[%emt 0:00:27]} Rb4+ {[%emt 0:00:00]} 67. Kg3 $2 {[%emt 0:00:12]} (67. Kf3) 67... Rb2 {[%emt 0:00:00] Hoping for ...a2. Black is clearly winning.} 68. Nf4+ {[%emt 0:00:47]} Kf5 {[%emt 0:00:00] Strongly threatening ...Rb3+.} 69. Nd5 {[%emt 0:00:36]} Ke6 {[%emt 0:00:00]} 70. Ne3 {[%emt 0:00:29]} (70. Nf4+ $142 Kd7 71. Kg4) 70... a2 {[%emt 0:00:00]} 71. Ra6+ {[%emt 0:00:38]} Kd7 {[%emt 0:00:04]} 72. Nd5 {[%emt 0:00:22]} Rb3+ {[%emt 0:00:16]} 73. Kf4 {[%emt 0:00:48]} Ra3 {[%emt 0:00:08] Weighted Error Value: White=0.28 (precise) /Black=0.24 (precise)} 0-1